Cogmind - Beta 15 @@@ ROGUE MODE // 2025.07.23 @ 13:47:26 Player: Dew Result: Destroyed by G-34 Mercenary with Small Laser Performance ------------- Evolutions (1) 500 Regions Visited (3) 600 Robots Destroyed (34) 170 Value Destroyed (712) 712 Prototype IDs (2) 40 Alien Tech Used (0) 0 Bonus (0) 0 TOTAL SCORE: 2022 Bonus ------- None Cogmind --------- Core Integrity 0/400 Matter 195/300 Energy 100/100 System Corruption 0% Temperature Cool (15) Movement Walking (120) Location -9/Materials Parts ------- > --- POWER (1) -------- (None) > --- PROPULSION (4) --- Improved Aluminum Leg > --- UTILITY (2) ------ Small Storage Unit > --- WEAPON (2) ------- Heavy Flail > --- INVENTORY (8) ---- Grenade Launcher Heavy Flail Peak State ------------ > --- POWER ------------ Improved Ion Engine > --- PROPULSION ------- Aluminum Leg Improved Aluminum Leg Improved Aluminum Leg Improved Aluminum Leg > --- UTILITY ---------- Small Storage Unit Hardlight Generator > --- WEAPON ----------- Heavy Flail Heavy Flail > --- INVENTORY -------- Improved Aluminum Leg Assault Rifle Grenade Launcher Mini Grenade Launcher [Rating: 19] Favorites ----------- Power Improved Ion Engine Engine Improved Ion Engine Propulsion Aluminum Leg Leg Aluminum Leg Utility Small Storage Unit Device Heat Sink Storage Small Storage Unit Weapon Assault Rifle Energy Gun Medium Laser Ballistic Gun Assault Rifle Launcher Grenade Launcher Impact Weapon Heavy Flail Build | -11 -10 -10 -9 ------- Run | Yrd Mat Min Mat Slots Evolved 2 | . . . 2 Power . | . . . . Propulsion 2 | . . . 2 Utility . | . . . . Weapon . | . . . . Parts Attached 16 | . 3 . 13 Power 2 | . 1 . 1 Engine 2 | . 1 . 1 Core . | . . . . Reactor . | . . . . Propulsion 6 | . . . 6 Treads . | . . . . Leg 6 | . . . 6 Wheel . | . . . . Hover . | . . . . Flight . | . . . . Utility 3 | . 1 . 2 Device 2 | . . . 2 Storage 1 | . 1 . . Processor . | . . . . Hackware . | . . . . Protection . | . . . . Artifact . | . . . . Weapon 5 | . 1 . 4 Energy Gun . | . . . . Energy Cannon . | . . . . Ballistic Gun 1 | . . . 1 Ballistic Cannon . | . . . . Launcher 2 | . 1 . 1 Special Weapon . | . . . . Impact Weapon 2 | . . . 2 Slashing Weapon . | . . . . Piercing Weapon . | . . . . Special Melee Weapon . | . . . . Unidentified Prototypes . | . . . . Parts Lost 13 | . . . 13 Power 2 | . . . 2 Propulsion 7 | . . . 7 Utility 2 | . . . 2 Weapon 2 | . . . 2 Highest Loss Streak 8 | . . . 8 To Critical Strikes . | . . . . Average Backups 6 | . 7 8 5 Power . | . 1 1 . Propulsion 4 | . 4 6 2 Utility . | . . 1 . Weapon . | . 1 . 1 Tool/Special . | . . . . Unused Backups 14 | . 12 . 2 Power 2 | . 2 . . Propulsion 8 | . 6 . 2 Utility 1 | . 1 . . Weapon 3 | . 3 . . Tool/Special . | . . . . Average Slot Usage (%) 85 | . 89 85 84 Engine 12 | . 14 14 10 Leg 31 | . 28 28 36 Device 3 | . . . 7 Storage 13 | . 18 14 11 Energy Gun 2 | . 11 . . Ballistic Gun 11 | . 14 14 7 Launcher 8 | . 1 14 7 Impact Weapon 1 | . . . 4 Peak Build Rating 19 | . 8 8 19 Average Rating 9 | . 6 8 10 On Entrance 7 | 6 6 8 8 Naked Turns . | . . . . Heaviest Build 23 | 12 17 17 23 Greatest Support 49 | 20 20 20 49 Greatest Overweight (x) 1 | . . . 1 Average Overweight (x) . | . . . . Largest Inventory Capacity 8 | . 8 8 8 Average Capacity 8 | . 8 8 8 Most Carried 8 | . 8 8 8 Average Carried 6 | . 7 8 5 Final Capacity 8 | 8 8 8 8 Final Carried 8 | 6 8 8 2 Class Distribution -------------------- 100% | Mutant Dominant Class ---------------- Mutant | -10/Materials Mutant | -10/Mines Mutant | -9/Materials Resources | -11 -10 -10 -9 ----------- Run | Yrd Mat Min Mat Matter Collected 473 | 173 40 86 174 Remotely . | . . . . Salvage Created 655 | . 130 34 491 Parts 49 | . 11 7 31 Haulers Intercepted . | . . . . Recyclers Shooed . | . . . . Parts Field Recycled . | . . . . Retrieved Matter . | . . . . Parts Self-Destructed . | . . . . Prevented . | . . . . Kills | -11 -10 -10 -9 ------- Run | Yrd Mat Min Mat Combat Hostiles Destroyed 26 | . 3 6 17 Melee 1 | . . . 1 Guns 2 | . 1 . 1 AOE 23 | . 2 6 15 Classes Destroyed 7 | . 2 1 4 Worker 1 | . . . 1 Builder 2 | . 1 . 1 Recycler 3 | . . . 3 Watcher 2 | . . . 2 Swarmer 13 | . . 6 7 Grunt 10 | . 3 . 7 Sentry 3 | . . . 3 Best Kill Streak 11 | . 3 3 11 Combat Bots Only 8 | . 2 3 8 Max Kills in Single Turn 3 | . 2 3 3 Gunslinging . | . . . . Exploded 3 | . 1 3 3 Melee 1 | . . . 1 Uniques/NPCs Destroyed . | . . . . Combat | -11 -10 -10 -9 -------- Run | Yrd Mat Min Mat Hostile Shots Fired 170 | . 12 15 143 Missed 48 | . 4 7 37 Hits 122 | . 8 8 106 Projectile 122 | . 8 8 106 Critical Strikes 1 | . . . 1 Damage Taken 1699 | . 108 88 1503 Core 450 | . 24 18 408 Absorbed by Shields 20 | . . . 20 Core Remaining (%) 91 | 100 . 83 . Volleys Fired 29 | . 5 6 18 Largest 2 | . 2 2 2 Hottest 70 | . 70 50 50 Shots Fired 42 | . 9 9 24 Gun 22 | . 6 6 10 Cannon . | . . . . Launcher 20 | . 3 3 14 Special . | . . . . Kinetic 21 | . 5 6 10 Thermal 1 | . 1 . . Explosive 20 | . 3 3 14 Electromagnetic . | . . . . Robot Hit Streak 7 | . 4 1 7 Robot Miss Streak 3 | . 1 3 1 Penetration Max . | . . . . Secondary Targets . | . . . . Shots Hit Robots 26 | . 6 3 17 Core Hits 46 | . 6 7 33 Critical Kills . | . . . . Critical Parts Destroyed . | . . . . Critical Strikes . | . . . . Melee Attacks 4 | . . . 4 Impact 4 | . . . 4 Slashing . | . . . . Piercing . | . . . . Sneak Attacks . | . . . . Combat Hostiles . | . . . . Follow-up Attacks 1 | . . . 1 Damage Inflicted 2618 | . 367 293 1958 Guns 101 | . 50 14 37 Cannons . | . . . . Explosions 2378 | . 317 279 1782 Melee 139 | . . . 139 Ramming . | . . . . Kinetic 88 | . 37 14 37 Thermal 174 | . 13 . 161 Explosive 2217 | . 317 279 1621 Electromagnetic . | . . . . Impact 139 | . . . 139 Slashing . | . . . . Piercing . | . . . . Highest Corruption . | . . . . Average Corruption . | . . . . Corruption Purged . | . . . . Corruption Blocked . | . . . . Overload Shots . | . . . . Overflow Damage 118 | . 8 . 110 Projectiles . | . . . . Explosions 118 | . 8 . 110 Melee . | . . . . Knockbacks . | . . . . Impact . | . . . . Kinetic . | . . . . Secondary . | . . . . Self-Inflicted Damage 354 | . . 18 336 Shots 10 | . . 1 9 Rammed . | . . . . Targets Rammed . | . . . . Kicked . | . . . . Crushed . | . . . . Highest Temperature 17 | . 15 . 17 Average Temperature 7 | . 7 . 7 Received Heat Transfer 427 | . 63 . 364 Siege Activations . | . . . . Martial Activations . | . . . . Shielding Activations . | . . . . Robots Disrupted . | . . . . Combat Hostiles . | . . . . Robots Corrupted . | . . . . Combat Hostiles . | . . . . Parts Fried . | . . . . Impact Corruptions . | . . . . Robots Melted . | . . . . Combat Hostiles . | . . . . Parts Melted . | . . . . Heat Transferred 137 | . 37 . 100 Parts Sabotaged . | . . . . Parts Stolen . | . . . . Parts Stripped . | . . . . Power Chain Reactions . | . . . . Alert | -11 -10 -10 -9 ------- Run | Yrd Mat Min Mat Maximum Alert Level 2 | . . . 2 Low Security (%) 89 | . 100 100 76 Level 1 6 | . . . 16 Level 2 3 | . . . 7 Level 3 . | . . . . Level 4 . | . . . . Level 5 . | . . . . High Security . | . . . . Max Security . | . . . . Peak Influence 405 | . 73 98 405 Initial 24 | . . 24 6 Average 70 | . 15 51 111 Influence Increases 951 | . 127 164 660 Destroy 0b10 Robot/C 520 | . 60 120 340 Destroy 0b10 Robot/NC 40 | . 5 . 35 Destroy Leader 114 | . 20 20 74 Successful Hack 9 | . 9 . . Disable Machine 30 | . . . 30 Destroy Structure 118 | . 18 24 76 Partial Spotted 15 | . 15 . . Lose Combat Pursuer 105 | . . . 105 Influence Decreases 551 | . 64 209 278 Entered New Map 51 | . . 39 12 Time Decay 370 | . 64 170 136 Lost Part 130 | . . . 130 Squads Dispatched 3 | . 1 . 2 Investigation . | . . . . Extermination . | . . . . Reinforcement 3 | . 1 . 2 Assault . | . . . . Garrison . | . . . . Intercept . | . . . . Searches Triggered . | . . . . Construction Impeded . | . . . . Haulers Reinforced . | . . . . Active Scanning Responses . | . . . . Cargo Convoy Interrupts . | . . . . Stealth | -11 -10 -10 -9 --------- Run | Yrd Mat Min Mat Distress Signals 6 | . 1 . 5 Communications Jammed . | . . . . Distress Signals . | . . . . Times Spotted 44 | . 5 6 33 Peak Tracking Total 11 | . 3 3 11 Tactical Retreats 6 | . . . 6 Traps | -11 -10 -10 -9 ------- Run | Yrd Mat Min Mat Traps Triggered 1 | . . . 1 Indirectly . | . . . . Trap Hack Attempts . | . . . . Triggered . | . . . . Disarmed . | . . . . Reprogrammed . | . . . . Reused . | . . . . Traps Extracted . | . . . . Installed . | . . . . Triggered . | . . . . Machines | -11 -10 -10 -9 ---------- Run | Yrd Mat Min Mat Machines Disabled 2 | . . . 2 Max in Single Turn 1 | . . . 1 Machines Repaired . | . . . . Machines Dismantled . | . . . . Machines Sabotaged . | . . . . Overloaded Fab Kills . | . . . . Hacking | -11 -10 -10 -9 --------- Run | Yrd Mat Min Mat Machines Accessed 1 | . 1 . . Terminals 1 | . 1 . . Fabricators . | . . . . Repair Stations . | . . . . Recycling Units . | . . . . Scanalyzers . | . . . . Garrison Access . | . . . . Total Hacks 4 | . 4 . . Successful 4 | . 4 . . Failed . | . . . . Catastrophic . | . . . . Database Lockouts . | . . . . Manual 2 | . 2 . . Terminals 4 | . 4 . . Fabricators . | . . . . Repair Stations . | . . . . Recycling Units . | . . . . Scanalyzers . | . . . . Garrison Access . | . . . . Terminal Hacks 4 | . 4 . . Prototype ID Bank 1 | . 1 . . Emergency Access Points 1 | . 1 . . Locate Traps 1 | . 1 . . Zone Layout 1 | . 1 . . Fabricator Hacks . | . . . . Repair Station Hacks . | . . . . Recycling Unit Hacks . | . . . . Scanalyzer . | . . . . Garrison Access Hacks . | . . . . Unauthorized Hacks . | . . . . Terminals . | . . . . Fabricators . | . . . . Repair Stations . | . . . . Recycling Units . | . . . . Scanalyzers . | . . . . Garrison Access . | . . . . Data Cores Recovered . | . . . . Used . | . . . . Hacking Detections 1 | . 1 . . Full Trace Events . | . . . . Feedback Events . | . . . . Feedback Blocked . | . . . . Robot Schematics Acquired . | . . . . Robots Built . | . . . . Authchips . | . . . . Time . | . . . . Total Robot Build Rating . | . . . . Part Schematics Acquired . | . . . . Parts Built . | . . . . Authchips . | . . . . Time . | . . . . Total Part Build Rating . | . . . . Parts Repaired . | . . . . Time . | . . . . Parts Recycled . | . . . . Recycled Matter . | . . . . Retrieved Matter . | . . . . Retrieved Components . | . . . . Parts Scanalyzed . | . . . . Part Schematics Acquired . | . . . . Parts Damaged . | . . . . Bothacking | -11 -10 -10 -9 ------------ Run | Yrd Mat Min Mat Used RIF Installer . | . . . . Robots Hacked . | . . . . Non-combat . | . . . . Combat . | . . . . Robot Hacks Applied . | . . . . Relay Couplers Released . | . . . . Fabnet Peak Effective % . | . . . . Robots Rewired . | . . . . Allies Hacked . | . . . . Hacks Repelled . | . . . . Allies | -11 -10 -10 -9 -------- Run | Yrd Mat Min Mat Total Allies . | . . . . Largest Group . | . . . . Highest-Rated Group . | . . . . Highest-Rated Ally . | . . . . Total Orders . | . . . . Ally Attacks . | . . . . Total Damage . | . . . . Kills . | . . . . Allies Corrupted . | . . . . Allies Melted . | . . . . Intel | -11 -10 -10 -9 ------- Run | Yrd Mat Min Mat Active Infowar (turns) . | . . . . Robot Analysis Total . | . . . . Derelict Logs Recovered . | . . . . Drone Launches . | . . . . Drone Recoveries . | . . . . Exploration | -11 -10 -10 -9 ------------- Run | Yrd Mat Min Mat Turns Passed 887 | . 166 345 376 Spaces Moved 606 | 1 93 274 238 Core . | . . . . Treads . | . . . . Legs 606 | 1 93 274 238 Wheels . | . . . . Hover . | . . . . Flight . | . . . . Fastest Speed 120 | 120 120 120 120 Average Speed 122 | 120 120 120 125 Slowest Speed 190 | 120 120 120 190 Overloaded Moves . | . . . . Propulsion Burnouts . | . . . . Robots Hopped . | . . . . Potential Cave-ins . | . . . . Cave-ins Triggered . | . . . . Exploration Rate (%) 29 | 2 20 72 22 Regions Visited 3 Branch Regions 1 Pre-discovered Areas . | . . . . Known Exits Taken . | . . . . Unknown Exits Taken 3 | 1 1 1 . Scrap Searched 2 | . . 2 . Spaces Dug . | . . . . Terrain Destroyed 138 | . 17 24 97 Melee . | . . . . Projectile . | . . . . AOE 138 | . 17 24 97 Terrain Rammed . | . . . . Walls Destroyed . | . . . . Machines Disabled . | . . . . Actions | -11 -10 -10 -9 --------- Run | Yrd Mat Min Mat Total 714 | . 144 281 289 Wait 31 | . 24 2 5 Move 603 | . 92 273 238 Hop . | . . . . Pick Up 13 | . 9 . 4 Fast Attach 4 | . 2 . 2 Attach 13 | . 1 . 12 Detach 6 | . 2 . 4 Swap 1 | . . . 1 Drop 11 | . 9 . 2 Fire 29 | . 5 6 18 Melee 3 | . . . 3 Ram . | . . . . Kick . | . . . . Crush . | . . . . Escape Stasis . | . . . . Rewire . | . . . . Trap . | . . . . Miscellaneous . | . . . . Route ------- -11/Scrapyard -10/Materials -10/Mines -9/Materials History --------- Turn | Location | Event 1 | -11/Scrapyard | Discovered new exit (range 0) 1 | -11/Scrapyard | Entered Materials 100 | -10/Materials | Discovered new exit (range 5) 167 | -10/Materials | Entered Mines 306 | -10/Mines | Build established: Mutant 504 | -10/Mines | Discovered new exit (range 8) 512 | -10/Mines | Entered Materials 512 | -9/Materials | Evolved 2 slots: Propulsion x2 780 | -9/Materials | Destroyed 8 combat bots 788 | -9/Materials | Lost 4 parts (3n1u) 817 | -9/Materials | Core integrity fell below 50% 833 | -9/Materials | Core integrity fell below 20% 853 | -9/Materials | Destroyed 7 combat bots 862 | -9/Materials | Lost 8 parts (1p4n1u2w) 888 | -9/Materials | Destroyed by G-34 Mercenary with Small Laser Last Messages --------------- 00826_ G-34 Mercenary destroyed. 00826_ Mni. Grenade Launcher destroyed. 00826_ Destroyed Mni. Grenade Launcher. 00830_ U-05 Engineer lays Concrete. 00831_ U-05 Engineer builds a Wall. 00831_ Assault Rifle destroyed. 00832_ Fusion Modulator explodes. 00832_ Destroyed Ion Engine. 00832_ G-34 Mercenary destroyed. 00832_ U-05 Engineer builds a Wall. 00836_ U-05 Engineer lays Concrete. 00837_ U-05 Engineer builds a Wall. 00839_ U-05 Engineer lays Concrete. 00841_ U-05 Engineer builds a Wall. 00841_ U-05 Engineer lays Concrete. 00843_ U-05 Engineer builds a Wall. 00843_ U-05 Engineer lays Concrete. 00866_ Imp. Ion Engine destroyed. 00867_ U-05 Engineer builds a Wall. 00884_ K-01 Serf cleans the Terminal. Map ----- +----------------------------------------------------+ | ?????????????????????????????????????????????????? | | ?????????????????????????????????????????????????? | | ?????????????????????????????????????????????????? | | ?????????????????????????????????????????????????? | | ?????????????????????????????????????????????????? | | ?????????????????????????????????????????????????? | | ?????????????????????????????????????????????????? | | ?????????????????????????????????????????????????? | | ?????????????????????????????????????????????????? | | ?????????????????????????????????????????????????? | | ?????????????????????????????????????????????????? | | ?????????????????????????????????????????????????? | | ?????????????????????????????????????????????????? | | ?????????????????????????????????????????????????? | | ?????????????????????????????????????????????????? | | ?????????????????????????????????????????????????? | | ?????????????????????????????????????????????????? | | ????????????????????#########????????????????????? | | ????????????????????# #????????????????????? | | ????????????????????#"" """ #????????????????????? | | ????????????????????#"" """ #????????????????????? | | ????????????????????#"T """ #????????????????????? | | ????????????????????#"" #????????????????????? | | ????????????????????#"" #????????????????????? | | ????????????????????# #????????????????????? | | ????????????????????# ! s@ #????????????????????? | | ????????????????????#####g###????????????????????? | | ??????????????????????# ###### ????????????? | | ???????################ #??????????? | | ?? ""??# Tk +??????????? | | ?? """?# #??????????? | | ? """ # ###########??????????? | | """ + ############# ##????????????????????? | | """ ##????????# #?????????????????????? | | !=# ###??????# #?????????????????????? | | = * ""###????# #?????????????????????? | | ""T"" #????# #?????????????????????? | | """"" ##???# #?????????????????????? | | "#???# #?????????????????????? | | # #### "#???? ?????????????????????? | | ###### [ "#???? ?????????????????????? | | "#???? " ????????????????????? | | # #*% ""##???? ????????????????????? | | ### # #????? ? ?????????????????????? | | ### # #??????????????????????????????? | | ### #### ###??????????????????????????????? | | #?# #???##????????????????????????????????? | | #?# #?????????????????????????????????????? | | #?# ######????????????????????????????????? | | ### # #????????????????????????????????? | +----------------------------------------------------+ Best States ------------- Heat Dissipation 38 Energy Generation 12 Energy Capacity 265 Matter Stores 300 Matter Capacity 300 Sight Range 16 Terrain Scan Density 10 Evasion (%) 55 Item Schematics ----------------- None Robot Schematics ------------------ None Fabricated ------------ Nothing Repaired ---------- Nothing Alien Tech Used ----------------- None Achievements -------------- Let's See Who's Tougher Challenges ------------ None Game ------ Seed ShadeSeismicSegregator Manual? 0 Play Time 00:13:55 Cumulative 9.9 hours Start 2025.07.23 @ 13:35:39 End 2025.07.23 @ 13:47:26 Sessions 1 Manual Loads 0 Difficulty Rogue Special Mode None Game No. 14 Rogue 14 Adventurer 0 Explorer 0 Win Type - Total 0 Types 0/0/0/0/0/0/0/0/0/0 Lore% 5 Gallery% 15 Achievement% 18 Wizard Run 0 Options --------- Layout 0 ASCII 0 Keyboard 0 Movement Mouse Keybinds 0 Fullscreen 1 Font 24/Terminus Map View 76x50 Zoom Use 4% Tactical HUD 1 Map Filters NONE Filters NONE Steam 1 RUN: d3427f65-cf20-407b-b7ab-dfc76ce45f9c